Cogmind - Beta 9.6 *** ADVENTURER MODE // 2020.08.09 @ 23:55:53 Player: Skitgris Result: Destroyed by Y-45 Defender with Heavy Assault Rifle Performance ------------- Evolutions (1) 500 Regions Visited (3) 600 Robots Destroyed (40) 200 Value Destroyed (1030) 1030 Prototype IDs (2) 40 Alien Tech Used (0) 0 Bonus (8) 8 TOTAL SCORE: 2378 Bonus ------- High Alert Combat Kills 8 Cogmind --------- Core Integrity 0/400 Matter 143/300 Energy 98/100 System Corruption 0% Temperature Cool (9) Movement Core (50) Location -9/Storage Parts ------- > --- POWER (2) -------- (None) > --- PROPULSION (2) --- (None) > --- UTILITY (3) ------ (None) > --- WEAPON (2) ------- (None) > --- INVENTORY (4) ---- Armored Wheel Improved Lightning Gun Medium Laser Improved Medium Laser Peak State ------------ > --- POWER ------------ Ion Engine Improved Ion Engine > --- PROPULSION ------- Armored Wheel Armored Wheel > --- UTILITY ---------- Small Storage Unit Sensor Array Signal Interpreter > --- WEAPON ----------- Improved Lightning Gun Improved Lightning Gun > --- INVENTORY -------- Armored Wheel Armored Wheel Improved Lightning Gun Medium Laser Medium Laser Mini Grenade Launcher [Rating: 23] Favorites ----------- Power Light Ion Engine Engine Light Ion Engine Propulsion Armored Wheel Leg Aluminum Leg Wheel Armored Wheel Utility Small Storage Unit Device Sensor Array Storage Small Storage Unit Processor Signal Interpreter Weapon Medium Laser Energy Gun Medium Laser Launcher Mini Grenade Launcher Build | -11 -10 -9 -9 ------- Run | Scr Mat Mat Sto Slots Evolved 2 | . . 2 . Power 1 | . . 1 . Propulsion . | . . . . Utility 1 | . . 1 . Weapon . | . . . . Parts Attached 29 | 6 6 3 14 Power 5 | 1 1 1 2 Engine 5 | 1 1 1 2 Core . | . . . . Reactor . | . . . . Propulsion 5 | 2 3 . . Treads . | . . . . Leg 1 | . 1 . . Wheel 4 | 2 2 . . Hover . | . . . . Flight . | . . . . Utility 4 | 1 1 . 2 Device 2 | . . . 2 Storage 1 | 1 . . . Processor 1 | . 1 . . Hackware . | . . . . Protection . | . . . . Artifact . | . . . . Weapon 15 | 2 1 2 10 Energy Gun 10 | 2 . 1 7 Energy Cannon . | . . . . Ballistic Gun . | . . . . Ballistic Cannon . | . . . . Launcher 5 | . 1 1 3 Special Weapon . | . . . . Impact Weapon . | . . . . Slashing Weapon . | . . . . Piercing Weapon . | . . . . Special Melee Weapon . | . . . . Unidentified Prototypes 2 | . . . 2 Parts Lost 11 | . 2 1 8 Power 4 | . 1 . 3 Propulsion 3 | . 1 . 2 Utility 2 | . . . 2 Weapon 2 | . . 1 1 Highest Loss Streak 5 | . 2 1 5 Average Slot Usage (%) 88 | . 95 86 83 Engine 16 | . 13 22 17 Wheel 21 | . 25 22 18 Device 2 | . . . 4 Storage 11 | . 14 11 9 Processor 11 | . 12 11 10 Energy Gun 19 | . 26 3 16 Launcher 4 | . 1 16 4 Naked Turns 6 | . . . 6 Heaviest Build 27 | 11 14 17 27 Greatest Support 26 | 26 26 24 24 Greatest Overweight (x) 3 | 2 1 . 3 Average Overweight (x) . | . . . . Largest Inventory Capacity 6 | 6 6 6 6 Average Capacity 5 | 5 6 6 5 Most Carried 6 | 6 6 6 6 Average Carried 5 | 4 5 5 5 Final Capacity 6 | 6 6 6 4 Final Carried 6 | 5 6 5 4 Class Distribution -------------------- 100% | Mutant Dominant Class ---------------- Mutant | -10/Materials Mutant | -9/Materials Mutant | -9/Storage Resources | -11 -10 -9 -9 ----------- Run | Scr Mat Mat Sto Matter Collected 593 | 217 68 2 306 Remotely . | . . . . Salvage Created 997 | 15 267 124 591 Parts 64 | 2 12 13 37 Haulers Intercepted 1 | . . . 1 Recyclers Shooed 2 | . . 1 1 Parts Field Recycled . | . . . . Retrieved Matter . | . . . . Parts Self-Destructed . | . . . . Prevented . | . . . . Kills | -11 -10 -9 -9 ------- Run | Scr Mat Mat Sto Combat Hostiles Destroyed 30 | . 11 8 11 Guns 12 | . 7 . 5 AOE 15 | . 4 8 3 Classes Destroyed 10 | 1 3 1 5 Worker 1 | . . . 1 Tunneler 1 | 1 . . . Hauler 1 | . . . 1 Recycler 2 | . . . 2 Operator 1 | . . . 1 Watcher 4 | . 1 1 2 Swarmer 9 | . 5 4 . Grunt 17 | . 6 3 8 Brawler 1 | . . . 1 Sentry 3 | . . 1 2 Best Kill Streak 11 | 1 5 9 11 Combat Bots Only 8 | . 4 8 6 Max Kills in Single Turn 2 | 1 2 2 2 Gunslinging 1 | . 1 . . Exploded 2 | . 1 2 1 Melee . | . . . . Uniques/NPCs Destroyed . | . . . . Combat | -11 -10 -9 -9 -------- Run | Scr Mat Mat Sto Damage Taken 1500 | . 309 174 1017 Core 492 | . 91 53 348 Absorbed by Shields . | . . . . Core Remaining (%) 81 | 100 63 . . Volleys Fired 85 | 1 30 10 44 Largest 2 | 2 2 2 2 Hottest 120 | 100 100 60 120 Shots Fired 119 | 2 49 11 57 Gun 88 | 2 38 . 48 Cannon . | . . . . Launcher 31 | . 11 11 9 Special . | . . . . Kinetic . | . . . . Thermal 46 | 2 38 . 6 Explosive 31 | . 11 11 9 Electromagnetic 42 | . . . 42 Robot Hit Streak 21 | . 17 21 13 Robot Miss Streak 2 | 1 2 . 2 Penetration Max . | . . . . Secondary Targets 3 | . 2 . 1 Max Gunslinging Chain 1 | . 1 . 1 Shots Hit Robots 82 | . 34 8 40 Core Hits 62 | 1 21 13 27 Critical Hits . | . . . . Critical Kills . | . . . . Critical Parts Destroyed . | . . . . Melee Attacks . | . . . . Impact . | . . . . Slashing . | . . . . Piercing . | . . . . Sneak Attacks . | . . . . Combat Hostiles . | . . . . Follow-up Attacks . | . . . . Damage Inflicted 2945 | 12 850 490 1593 Guns 1243 | 12 401 . 830 Cannons . | . . . . Explosions 1702 | . 449 490 763 Melee . | . . . . Ramming . | . . . . Kinetic . | . . . . Thermal 512 | 12 401 . 99 Explosive 1702 | . 449 490 763 Electromagnetic 731 | . . . 731 Impact . | . . . . Slashing . | . . . . Piercing . | . . . . Highest Corruption . | . . . . Average Corruption . | . . . . Corruption Purged . | . . . . Overload Shots . | . . . . Overflow Damage 109 | . 74 . 35 Projectiles . | . . . . Explosions 109 | . 74 . 35 Melee . | . . . . Knockbacks . | . . . . Impact . | . . . . Kinetic . | . . . . Secondary . | . . . . Self-Inflicted Damage 45 | . . . 45 Shots 2 | . . . 2 Rammed . | . . . . Targets Rammed . | . . . . Kicked . | . . . . Crushed . | . . . . Highest Temperature 586 | 39 384 9 586 Average Temperature 164 | 24 156 4 184 Received Heat Transfer 648 | . 162 51 435 Effects 16 | . . . 16 Shutdowns 2 | . . . 2 Energy Bleed 1 | . . . 1 Interference 2 | . . . 2 Matter Decay 3 | . . . 3 Short Circuit 3 | . . . 3 Damage (major) 4 | . . . 4 Damage (core) 1 | . . . 1 Siege Activations . | . . . . Robots Corrupted 4 | . . . 4 Combat Hostiles 3 | . . . 3 Parts Fried 4 | . . . 4 Impact Corruptions . | . . . . Robots Melted . | . . . . Combat Hostiles . | . . . . Parts Melted 6 | . 6 . . Heat Transferred 1443 | 37 1184 . 222 Parts Sabotaged . | . . . . Parts Stolen . | . . . . Parts Stripped . | . . . . Power Chain Reactions . | . . . . Missiles Intercepted . | . . . . Alert | -11 -10 -9 -9 ------- Run | Scr Mat Mat Sto Peak Influence 427 | 5 279 336 427 Average Influence 170 | 2 125 211 217 Maximum Alert Level 2 | . 1 1 2 Low Security (%) 69 | 100 89 44 54 Level 1 28 | . 10 55 40 Level 2 2 | . . . 4 Level 3 . | . . . . Level 4 . | . . . . Level 5 . | . . . . High Security . | . . . . Max Security . | . . . . Squads Dispatched 3 | . . 2 1 Investigation . | . . . . Extermination . | . . . . Reinforcement 3 | . . 2 1 Assault . | . . . . Garrison . | . . . . Intercept . | . . . . Construction Impeded . | . . . . Haulers Reinforced . | . . . . Stealth | -11 -10 -9 -9 --------- Run | Scr Mat Mat Sto Distress Signals 4 | . 3 1 . Communications Jammed . | . . . . Distress Signals . | . . . . Times Spotted 46 | . 16 9 21 Peak Tracking Total 8 | . 5 6 8 Tactical Retreats 2 | . . . 2 Traps | -11 -10 -9 -9 ------- Run | Scr Mat Mat Sto Traps Triggered 1 | . . . 1 Indirectly . | . . . . Trap Hack Attempts . | . . . . Triggered . | . . . . Disarmed . | . . . . Reprogrammed . | . . . . Reused . | . . . . Traps Extracted . | . . . . Installed . | . . . . Triggered . | . . . . Machines | -11 -10 -9 -9 ---------- Run | Scr Mat Mat Sto Machines Disabled 5 | . . 1 4 Max in Single Turn 2 | . . 1 2 Machines Sabotaged . | . . . . Garrisons Compromised . | . . . . Overloaded Fab Kills . | . . . . Fab Network Shutdowns . | . . . . Hacking | -11 -10 -9 -9 --------- Run | Scr Mat Mat Sto Machines Accessed . | . . . . Terminals . | . . . . Fabricators . | . . . . Repair Stations . | . . . . Recycling Units . | . . . . Scanalyzers . | . . . . Garrison Access . | . . . . Total Hacks . | . . . . Successful . | . . . . Failed . | . . . . Catastrophic . | . . . . Database Lockouts . | . . . . Manual . | . . . . Terminals . | . . . . Fabricators . | . . . . Repair Stations . | . . . . Recycling Units . | . . . . Scanalyzers . | . . . . Garrison Access . | . . . . Terminal Hacks . | . . . . Fabricator Hacks . | . . . . Repair Station Hacks . | . . . . Recycling Unit Hacks . | . . . . Scanalyzer . | . . . . Garrison Access Hacks . | . . . . Unauthorized Hacks . | . . . . Terminals . | . . . . Fabricators . | . . . . Repair Stations . | . . . . Recycling Units . | . . . . Scanalyzers . | . . . . Garrison Access . | . . . . Data Cores Recovered . | . . . . Used . | . . . . Hacking Detections . | . . . . Full Trace Events . | . . . . Feedback Events . | . . . . Feedback Blocked . | . . . . Robot Schematics Acquired . | . . . . Robots Built . | . . . . Matter . | . . . . Time . | . . . . Total Robot Build Rating . | . . . . Part Schematics Acquired . | . . . . Parts Built . | . . . . Matter . | . . . . Time . | . . . . Total Part Build Rating . | . . . . Parts Repaired . | . . . . Time . | . . . . Parts Recycled . | . . . . Recycled Matter . | . . . . Retrieved Matter . | . . . . Retrieved Components . | . . . . Parts Scanalyzed . | . . . . Part Schematics Acquired . | . . . . Parts Damaged . | . . . . Bothacking | -11 -10 -9 -9 ------------ Run | Scr Mat Mat Sto Used RIF Installer . | . . . . Robots Hacked . | . . . . Non-combat . | . . . . Combat . | . . . . Robot Hacks Applied . | . . . . Relay Couplers Released . | . . . . Robots Rewired . | . . . . Allies Hacked . | . . . . Hacks Repelled . | . . . . Allies | -11 -10 -9 -9 -------- Run | Scr Mat Mat Sto Total Allies . | . . . . Largest Group . | . . . . Highest-Rated Group . | . . . . Highest-Rated Ally . | . . . . Total Orders . | . . . . Ally Attacks . | . . . . Total Damage . | . . . . Kills . | . . . . Allies Corrupted . | . . . . Allies Melted . | . . . . Intel | -11 -10 -9 -9 ------- Run | Scr Mat Mat Sto Robot Analysis Total . | . . . . Derelict Logs Recovered . | . . . . Drone Launches . | . . . . Drone Recoveries . | . . . . Exploration | -11 -10 -9 -9 ------------- Run | Scr Mat Mat Sto Turns Passed 853 | 61 289 67 436 Spaces Moved 489 | 48 197 46 198 Core 47 | 18 . . 29 Treads . | . . . . Legs . | . . . . Wheels 442 | 30 197 46 169 Hover . | . . . . Flight . | . . . . Fastest Speed 50 | 50 90 90 50 Average Speed 92 | 89 91 90 95 Slowest Speed 200 | 150 100 90 200 Overloaded Moves . | . . . . Propulsion Burnouts . | . . . . Robots Hopped . | . . . . Cave-ins Triggered . | . . . . Exploration Rate (%) 26 | 3 40 12 49 Regions Visited 3 Branch Regions 1 Pre-discovered Areas . | . . . . Known Exits Taken 2 | . 1 1 . Unknown Exits Taken 1 | 1 . . . Scrap Searched . | . . . . Spaces Dug . | . . . . Terrain Destroyed 122 | . 32 39 51 Melee . | . . . . Projectile . | . . . . AOE 122 | . 32 39 51 Actions | -11 -10 -9 -9 --------- Run | Scr Mat Mat Sto Total 767 | 61 257 59 390 Wait 132 | . 16 . 116 Move 486 | 47 196 45 198 Hop . | . . . . Pick Up 20 | 7 5 1 7 Fast Attach 8 | 4 2 . 2 Attach 10 | 2 2 2 4 Detach . | . . . . Swap 11 | . 2 1 8 Drop 15 | . 4 . 11 Fire 85 | 1 30 10 44 Melee . | . . . . Ram . | . . . . Kick . | . . . . Crush . | . . . . Escape Stasis . | . . . . Rewire . | . . . . Trap . | . . . . Miscellaneous . | . . . . Route ------- -11/Scrapyard -10/Materials (discovered 2 exits: *Mat / *Min) -9/Materials -9/Storage History --------- Turn | Location | Event 7 | -11/Scrapyard | Discovered new exit (range 15) 62 | -11/Scrapyard | Entered Materials 260 | -10/Materials | Discovered new exit (range 9) 267 | -10/Materials | Identified exit to Mines 309 | -10/Materials | Build established: Mutant 339 | -10/Materials | Discovered new exit (range 10) 346 | -10/Materials | Identified exit to Materials 351 | -10/Materials | Entered another Materials area 351 | -9/Materials | Evolved 2 slots: Power x1, Utility x1 394 | -9/Materials | Discovered new exit (range 14) 417 | -9/Materials | Identified exit to Storage 418 | -9/Materials | Entered Storage 426 | -9/Storage | Destroyed 8 combat bots 781 | -9/Storage | Core integrity fell below 50% 800 | -9/Storage | Core integrity fell below 20% 839 | -9/Storage | Lost 5 parts (2p2n1u) 854 | -9/Storage | Destroyed by Y-45 Defender with Heavy Assault Rifle Last Messages --------------- 00831_ R-06 Scavenger collects Aluminum Leg. 00834_ R-06 Scavenger collects Broken Imp. Lightning Gun. 00834_ U-05 Engineer builds a Wall. 00834_ Acquired 49 matter. 00836_ Acquired 45 matter. 00836_ K-01 Serf collects debris. 00839_ R-06 Scavenger collects Structural Scanner. 00840_ K-01 Serf collects debris. 00842_ R-06 Scavenger collects Datajack. 00843_ K-01 Serf collects debris. 00845_ Dropped Mni. Grenade Launcher. 00846_ Acquired Mni. Grenade Launcher. 00846_ R-06 Scavenger collects Hover Unit. 00847_ The unstable cave ceiling collapses. 00847_ Discarded Broken Signal Interpreter. 00847_ U-05 Engineer lays Concrete. 00848_ Dropped Imp. Lightning Gun. 00848_ K-01 Serf collects debris. 00848_ Dropped Mni. Grenade Launcher. 00848_ U-05 Engineer lays Concrete. Map ----- +----------------------------------------------------+ | ????????? ?# # ## # # # ###+## | | ??????? # # T + """ + # # | | ??????? # # ## # """ ###+####### # | | ??????? # #?# # """ # #??# # | | ???????? # #?# # # """ #??# # | | ????????? # #?# ######### "R" #??# # | | ?????????## % ###"####????# " " #??# # | | ????????## # % #????# #??########## | | ????# ### # !]#????# #???????????? | | ????? # #????########???????????? | | ????#+### [ # !! #???????????????????????? | | ????# %! # ! ]#???????????????????????? | | ????? """ #???????????????????????? | | ????# """ ] #=%Y=######??????????????????????? | | ????# "" [ * #??????????????????????? | | ????# """ *= #??????????????????????? | | ????# """ ##?????????????????????? | | ????# # #?????????????????????? | | ????####### " #?????????????????????? | | ??????????#"T # #?????????????????????? | | ??????????#"" # #?????????????????????? | | ??????????# [## #????????###??????????? | | ??????????######### # ####### #??????????? | | ??????? * #??????????? | | ??????? Y +??????????? | | ??????? @ #??????????? | | ???????#/########## ##+#### #??????????? | | ??????????????????##### ?????????????????????? | | ??????????????????????#Y ????????????????????? | | ?????????????????????? """ ???????????????????? | | ?????????????????????## """ ""?????????????????? | | ??????????????????????# """ T"#????????????????? | | ??????????????????????# """ ""#????????????????? | | ??????????????????????# """ ""#????????????????? | | ??????????????????????# ??? ?????????????????? | | ???????????????????????#????####?????????????????? | | | | | | | | | | | | | | | | | | | | | | | | | | | | | +----------------------------------------------------+ Best States ------------- Heat Dissipation 28 Energy Generation 17 Energy Capacity 415 Matter Stores 300 Matter Capacity 300 Sight Range 16 Robot Scan Range 10 Terrain Scan Density 10 Resistance: KI 20 Resistance: TH 20 Resistance: EX 20 Resistance: EM 20 Resistance: I 20 Resistance: S 20 Resistance: P 20 Evasion (%) 50 Offensive Hacking 10 Item Schematics ----------------- None Robot Schematics ------------------ None Fabricated ------------ Nothing Alien Tech Used ----------------- None Achievements -------------- None Challenges ------------ None Game ------ Seed HypercooledCoreMatrix Manual? 0 Play Time 00:18:23 Cumulative 15.2 hours Start 2020.08.09 @ 23:38:59 End 2020.08.09 @ 23:55:53 Sessions 1 Manual Loads 0 Difficulty Adventurer Special Mode None Game No. 27 Rogue 17 Adventurer 10 Explorer 0 Win Type - Total 0 Types 0/0/0/0/0/0/0 Lore% 5 Gallery% 21 Achievement% 14 Wizard Run 0 Options --------- ASCII 0 Keyboard 0 Movement Mouse Keybinds 0 Fullscreen 2 Font 36/X11 Map View 76x50 Tactical HUD 1 Map Filters NONE Filters NONE Steam 1 RUN: e75b36e5-576b-4c76-a3ca-a6d2cce9f581